bitfinex-derivatives/quotes_SOLF0:USTF0_20250528
["timestamp","ask_amount","ask_price","bid_price","bid_amount"]
[1748435024379,0.0374159,174.85,174.82,5.7178]
[1748435025983,5.7545159,174.85,174.82,5.7178]
[1748435026487,0.0374159,174.85,174.82,5.7178]
[1748435027986,5.7548159,174.85,174.81,5.75961995]
[1748435028687,0.0374159,174.85,174.82,5.7179]
[1748435028889,0.0374159,174.85,174.81,0.04131995]
[1748435029997,5.7546159,174.85,174.82,5.718]
[1748435030181,5.7546159,174.85,174.81,0.04131995]
[1748435030387,5.7546159,174.85,174.81,5.75951995]
[1748435030388,5.7547159,174.85,174.81,5.75951995]
[1748435030589,5.7547159,174.85,174.81,0.04131995]
[1748435030785,0.0374159,174.85,174.81,0.04131995]
[1748435031687,0.0374159,174.85,174.84,5.7175]
[1748435032896,5.7156,174.9,174.82,3.8922]
[1748435033386,5.716,174.89,174.85,5.7169]
[1748435033582,500.34815369,174.94,174.82,3.8922]
[1748435033896,500.34815369,174.94,174.86,5.7165]
[1748435034199,5.7159,174.89,174.86,5.7165]
[1748435034391,500.34815369,174.94,174.85,5.75593356]
[1748435035194,5.7161,174.89,174.85,5.75593356]
[1748435035398,500.34815369,174.94,174.85,5.75593356]
[1748435036194,500.34815369,174.94,174.85,0.03903356]
[1748435036788,6.62815369,174.91,174.85,0.03903356]
[1748435038190,5.7168,174.86,174.85,0.03903356]
[1748435041396,6.62815369,174.93,174.85,0.03903356]
[1748435041599,493.72,174.94,174.85,0.03903356]
[1748435042094,53.335,174.92,174.87,5.7162]
[1748435042296,47.62,174.92,174.87,5.7162]
[1748435042505,54.24815369,174.92,174.86,5.7166]
[1748435042694,47.62,174.92,174.85,0.03903356]
[1748435043091,5.7153,174.91,174.87,5.7162]
[1748435043607,5.7153,174.91,174.85,0.03903356]
[1748435044803,5.7155,174.9,174.85,0.03903356]
[1748435045394,5.7153,174.91,174.88,5.7161]
[1748435047304,5.7153,174.91,174.85,0.03903356]
[1748435047901,5.7153,174.91,174.88,5.716]
[1748435049103,53.3349,174.92,174.85,0.03903356]
[1748435049310,47.62,174.92,174.85,0.03903356]
[1748435049611,5.7157,174.9,174.87,5.7163]
[1748435050609,4.58791667,174.95,174.85,0.03903356]
[1748435052006,4.58791667,174.95,174.87,5.7162]
[1748435052210,4.58791667,174.95,174.89,0.0369162]
[1748435053206,5.7155,174.9,174.89,0.0369162]
[1748435053410,6.62815369,174.93,174.81,3.861]
[1748435053701,5.7164,174.88,174.84,5.7172]
[1748435054014,44.64,174.91,174.84,5.7172]
[1748435054313,6.62815369,174.9,174.81,1.9549]
[1748435054507,6.66619321,174.87,174.84,0.04258977]
[1748435055010,5.7171,174.85,174.84,0.04258977]
[1748435055214,6.66619321,174.87,174.78,2.0062]
[1748435055509,6.62815369,174.87,174.77,1.82269919]
[1748435055709,5.719,174.8,174.77,1.82269919]
[1748435056209,0.04204811,174.8,174.77,1.86507072]
[1748435057205,5.7194,174.78,174.77,1.86507072]
[1748435063008,48.9194,174.78,174.77,1.86507072]
[1748435063221,48.9194,174.78,174.71,5.7217]
[1748435063222,5.7209,174.74,174.7,3.93]
[1748435063917,5.7209,174.74,174.7,9.6518]
[1748435064312,5.76373485,174.74,174.7,9.69455469]
[1748435065113,5.76373485,174.74,174.71,5.7217]
[1748435066912,5.76373485,174.74,174.7,9.69475469]
[1748435067620,5.7211,174.73,174.7,2.06335469]
[1748435068309,5.7214,174.72,174.7,0.04275469]
[1748435068509,0.04283485,174.74,174.7,0.04275469]
[1748435069721,5.7217,174.71,174.7,0.04275469]
[1748435073423,0.04283485,174.74,174.7,0.04275469]
[1748435073918,0.04283485,174.74,174.72,5.7212]
[1748435074119,0.04283485,174.74,174.7,0.04275469]
[1748435074516,0.04283485,174.74,174.72,5.7212]
[1748435075324,0.04283485,174.74,174.73,5.7211]
[1748435077119,41.76,174.83,174.7,6.67090838]
[1748435077320,41.76,174.83,174.73,6.62815369]
[1748435077519,41.76,174.83,174.74,1.9462]
[1748435077719,41.76,174.83,174.76,5.7198]
[1748435077720,5.719,174.8,174.76,5.7198]
[1748435078323,0.03784214,174.8,174.76,5.76352972]
[1748435078627,0.03784214,174.8,174.77,5.7195]
[1748435080221,5.75664214,174.8,174.77,5.7195]
[1748435081727,5.75664214,174.8,174.76,5.76372972]
[1748435082122,5.7191,174.79,174.76,5.76372972]
[1748435082629,5.7195,174.78,174.76,0.04372972]
[1748435082829,0.03784214,174.8,174.76,0.04372972]
[1748435083220,5.7194,174.79,174.76,0.04372972]
[1748435084921,5.7195,174.78,174.76,0.04372972]
[1748435085629,5.7192,174.79,174.76,0.04372972]
[1748435086325,0.03784214,174.8,174.76,0.04372972]
[1748435086728,5.7213,174.73,174.69,5.7222]
[1748435086937,41.76,174.76,174.66,3.9317]
[1748435087228,41.76,174.76,174.68,5.7225]
[1748435087626,0.03725922,174.74,174.7,0.04362478]
[1748435088127,5.7217,174.71,174.7,0.04362478]
[1748435089229,0.03725922,174.74,174.7,0.04362478]
[1748435089820,5.75805922,174.74,174.7,5.76562478]
[1748435090025,5.75805922,174.74,174.7,0.04362478]
[1748435090331,5.75805922,174.74,174.7,5.76532478]
[1748435090827,5.75805922,174.74,174.7,0.04362478]
[1748435091136,5.75805922,174.74,174.71,5.7217]
[1748435091432,5.75805922,174.74,174.7,0.04362478]
[1748435091628,5.7211,174.73,174.7,5.76552478]
[1748435092425,5.7215,174.72,174.7,0.04362478]
[1748435092625,0.03725922,174.74,174.7,0.04362478]
[1748435093726,5.7216,174.72,174.7,0.04362478]
[1748435094324,5.7211,174.73,174.7,5.76562478]
[1748435094736,0.03725922,174.74,174.7,0.04362478]
[1748435094933,5.75805922,174.74,174.71,5.7215]
[1748435095524,0.03725922,174.74,174.7,0.04362478]
[1748435096133,0.03725922,174.74,174.72,5.7211]
[1748435096523,0.03725922,174.74,174.73,2.24757214]
[1748435096725,0.03725922,174.74,174.72,5.7211]
[1748435096927,0.03725922,174.74,174.73,2.24767306]
[1748435098138,0.03725922,174.74,174.73,2.24756713]
[1748435098331,0.03725922,174.74,174.72,5.7211]
[1748435098532,0.03725922,174.74,174.73,2.24769016]
[1748435099238,0.03725922,174.74,174.7,0.04362478]
[1748435099434,0.03725922,174.74,174.71,2.24781545]
[1748435099636,0.03725922,174.74,174.72,2.24781545]
[1748435099831,0.03725922,174.74,174.73,7.96846852]
[1748435100333,0.03725922,174.74,174.73,7.9684414]
[1748435100637,0.03725922,174.74,174.73,7.96841893]
[1748435101538,0.03725922,174.74,174.73,5.7211]
[1748435102646,41.76,174.81,174.7,0.04362478]
[1748435102841,5.7191,174.79,174.69,6.62815369]
[1748435103030,41.76,174.81,174.75,5.7202]
[1748435103337,41.76,174.81,174.69,6.62815369]
[1748435103535,5.75833963,174.77,174.74,5.7204]
[1748435103737,0.03833963,174.77,174.73,0.03998733]
[1748435104740,5.75813963,174.77,174.74,5.7207]
[1748435106035,0.03833963,174.77,174.73,0.03998733]
[1748435106643,5.7203,174.76,174.73,5.76078733]
[1748435107139,5.7204,174.75,174.73,0.03998733]
[1748435107937,5.7202,174.76,174.73,5.76108733]
[1748435108137,0.03833963,174.77,174.73,0.03998733]
[1748435108541,5.7202,174.75,174.73,0.03998733]
[1748435109648,0.03833963,174.77,174.73,0.03998733]
[1748435109649,5.7204,174.74,174.73,0.03998733]
[1748435111048,5.7202,174.75,174.73,0.03998733]
[1748435113048,0.03833963,174.77,174.73,0.03998733]
[1748435113452,5.72,174.75,174.73,0.03998733]
[1748435113841,0.03833963,174.77,174.73,0.03998733]
[1748435114151,5.72,174.75,174.73,0.03998733]
[1748435115145,5.7201,174.74,174.73,0.03998733]
[1748435117648,40.64,174.76,174.66,3.9317]
[1748435117945,42.5224,174.76,174.66,3.9317]
[1748435118349,5.7214,174.7,174.66,3.9317]
[1748435118652,5.75914205,174.7,174.66,3.96859389]
[1748435119251,0.03774205,174.7,174.66,3.96859389]
[1748435120352,0.03774205,174.7,174.69,5.7218]
[1748435121248,40.64,174.76,174.72,5.7207]
[1748435121653,46.3597,174.76,174.72,5.7207]
[1748435122057,5.7192,174.77,174.73,5.7202]
[1748435122360,5.7192,174.77,174.73,5.75654919]
[1748435122361,0.03942499,174.77,174.73,5.75654919]
[1748435122757,5.75852499,174.77,174.73,5.75654919]
[1748435123059,0.03942499,174.77,174.73,5.75654919]
[1748435123256,0.03942499,174.77,174.73,0.03634919]
[1748435123457,5.7194,174.76,174.73,0.03634919]
[1748435123662,0.03942499,174.77,174.73,0.03634919]
[1748435123957,0.03942499,174.77,174.74,5.7198]
[1748435125058,0.03942499,174.77,174.73,0.03634919]
[1748435125059,0.03942499,174.77,174.75,5.7197]
[1748435125258,0.03942499,174.77,174.73,0.03634919]
[1748435125664,5.75882499,174.77,174.73,5.75664919]
[1748435126758,0.03942499,174.77,174.73,0.03634919]
[1748435127761,0.03942499,174.77,174.74,5.7198]
[1748435130058,5.75862499,174.77,174.74,5.7198]
[1748435132467,5.75862499,174.77,174.73,5.75664919]
[1748435133069,5.7195,174.76,174.73,5.75664919]
[1748435133267,0.03942499,174.77,174.73,0.03634919]
[1748435133465,5.75872499,174.77,174.73,0.03634919]
[1748435133666,5.75872499,174.77,174.73,5.75664919]
[1748435135368,5.7195,174.76,174.73,5.75664919]
[1748435135566,5.7195,174.76,174.73,0.03634919]
[1748435136676,5.7195,174.76,174.73,5.75674919]
[1748435137770,5.7195,174.76,174.73,0.03634919]
[1748435138578,5.7201,174.74,174.73,0.03634919]
[1748435149284,5.7214,174.7,174.66,3.9317]
[1748435149481,44.36815369,174.76,174.66,3.9317]
[1748435149681,5.721,174.71,174.68,5.7217]
[1748435149984,37.74,174.76,174.66,3.9317]
[1748435150178,5.7211,174.71,174.69,0.03667991]
[1748435151388,0.03874102,174.73,174.69,0.03667991]
[1748435151880,5.7212,174.71,174.69,0.03667991]
[1748435153981,5.7213,174.7,174.69,0.03667991]
[1748435155789,5.7229,174.66,174.6,531.74]
[1748435155989,44.36815369,174.71,174.6,37.74]
[1748435156488,6.62815369,174.7,174.6,37.74]
[1748435156881,0.03808712,174.67,174.63,0.03978572]
[1748435157094,5.7227,174.66,174.63,0.03978572]
[1748435157589,0.03808712,174.67,174.64,5.7232]
[1748435157896,0.03808712,174.67,174.63,0.03978572]
[1748435160086,0.03808712,174.67,174.65,5.7227]
[1748435161099,0.03808712,174.67,174.64,5.7231]
[1748435161793,0.03808712,174.67,174.63,0.03978572]
[1748435162494,5.7228,174.66,174.63,5.76318572]
[1748435162690,0.03808712,174.67,174.63,0.03978572]
[1748435163299,5.76058712,174.67,174.64,5.723]
[1748435164398,5.7228,174.66,174.63,5.76328572]
[1748435164901,5.76058712,174.67,174.63,5.76328572]
[1748435165294,0.03808712,174.67,174.63,5.76328572]
[1748435165495,5.7226,174.66,174.64,5.7233]
[1748435165693,0.03808712,174.67,174.63,0.03978572]
[1748435165896,5.7229,174.66,174.63,0.03978572]
[1748435167005,5.7229,174.66,174.63,5.76328572]
[1748435171508,5.723,174.65,174.63,0.03978572]
[1748435171806,0.03808712,174.67,174.63,0.03978572]
[1748435172106,5.7233,174.64,174.63,0.03978572]
[1748435178005,0.03808712,174.67,174.63,0.03978572]
[1748435178310,0.03808712,174.67,174.63,5.76338572]
[1748435178505,5.7228,174.66,174.63,5.76338572]
[1748435179210,5.7227,174.66,174.63,5.76338572]
[1748435179713,0.03808712,174.67,174.63,5.76338572]
[1748435180010,5.7228,174.66,174.64,5.7232]
[1748435180209,0.03808712,174.67,174.64,5.7232]
[1748435180608,5.76068712,174.67,174.63,0.03978572]
[1748435181202,5.76068712,174.67,174.63,5.76328572]
[1748435181407,5.7227,174.66,174.63,5.76328572]
[1748435182412,0.03808712,174.67,174.64,5.7232]
[1748435182612,0.03808712,174.67,174.63,0.03978572]
[1748435183114,5.7227,174.66,174.63,5.76318572]
[1748435185309,5.7233,174.64,174.63,0.03978572]
[1748435188417,5.7231,174.65,174.63,0.03978572]
[1748435188604,0.03808712,174.67,174.63,0.03978572]
[1748435189818,5.76048712,174.67,174.63,0.03978572]
[1748435191012,5.76048712,174.67,174.64,5.7231]
[1748435193719,5.76048712,174.67,174.65,5.7229]
[1748435194815,0.03808712,174.67,174.65,5.7229]
[1748435197024,5.76058712,174.67,174.64,5.7232]
[1748435197223,0.03808712,174.67,174.63,0.03978572]
[1748435197621,0.03808712,174.67,174.65,5.7227]
[1748435198515,0.03808712,174.67,174.63,0.03978572]
[1748435199124,0.03808712,174.67,174.65,5.7227]
[1748435200828,5.76048712,174.67,174.64,5.7232]
[1748435201019,0.03808712,174.67,174.63,0.03978572]
[1748435201427,5.7227,174.66,174.63,5.76318572]
[1748435201818,5.7227,174.66,174.63,0.03978572]
[1748435202213,5.7227,174.66,174.63,5.76318572]
[1748435202622,5.7227,174.66,174.64,5.7232]
[1748435202825,5.7227,174.66,174.63,0.03978572]
[1748435203123,5.723,174.65,174.63,0.03978572]
[1748435204021,5.7227,174.66,174.63,5.76338572]
[1748435205419,0.03808712,174.67,174.63,0.03978572]
[1748435205819,0.03808712,174.67,174.63,5.76338572]
[1748435206727,0.03808712,174.67,174.66,5.7226]
[1748435214121,0.03808712,174.67,174.66,7.97680845]
[1748435214328,0.03808712,174.67,174.66,7.97685455]
[1748435215237,0.03808712,174.67,174.66,7.976562]
[1748435215533,0.03808712,174.67,174.66,7.97654329]
[1748435215735,0.03808712,174.67,174.66,7.97645198]
[1748435216434,5.7211,174.71,174.68,5.7218]
[1748435216628,5.7211,174.71,174.69,2.25385198]
[1748435216838,5.7211,174.71,174.7,2.25385198]
[1748435218231,5.7213,174.7,174.69,0.03698004]
[1748435218435,5.7213,174.7,174.69,2.29065952]
[1748435218929,5.7213,174.7,174.69,2.29105029]
[1748435219129,5.7213,174.7,174.69,2.29105336]
[1748435220239,5.7213,174.7,174.69,2.29101504]
[1748435222138,5.7213,174.7,174.69,0.03698004]
[1748435222433,5.7213,174.7,174.69,2.2915715]
[1748435223529,5.7213,174.7,174.69,2.29149309]
[1748435223929,5.7213,174.7,174.69,0.03698004]
[1748435224131,5.7212,174.71,174.69,5.75858004]
[1748435224627,5.7212,174.71,174.69,0.03698004]
[1748435225234,0.0423574,174.72,174.69,0.03698004]
[1748435225431,34.86,174.8,174.69,0.03698004]
[1748435225625,34.86,174.8,174.66,6.62815369]
[1748435225831,5.7196,174.76,174.66,6.62815369]
[1748435226037,34.86,174.8,174.66,6.62815369]
[1748435226538,0.04381079,174.75,174.71,0.03621831]
[1748435227040,0.04381079,174.75,174.72,2.25094137]
[1748435227239,0.04381079,174.75,174.73,2.25066406]
[1748435227444,0.04381079,174.75,174.74,7.97066406]
[1748435227943,0.04381079,174.75,174.74,7.96916865]
[1748435228133,0.04381079,174.75,174.74,7.96911494]
[1748435228632,5.7188,174.78,174.74,2.24780886]
[1748435228836,5.7188,174.78,174.71,5.87731831]
[1748435228837,5.7188,174.78,174.75,2.24780886]
[1748435229138,5.7188,174.78,174.76,2.24780886]
[1748435229342,5.7188,174.78,174.77,2.24757938]
[1748435229538,5.7188,174.78,174.75,2.24757938]
[1748435229733,5.75597906,174.78,174.76,2.24757938]
[1748435229934,5.75597906,174.78,174.77,2.24637009]
[1748435230333,5.75597906,174.78,174.76,2.24484903]
[1748435230538,5.75597906,174.78,174.75,5.76242876]
[1748435230729,5.75597906,174.78,174.76,2.24472202]
[1748435230931,5.75597906,174.78,174.77,2.24539223]
[1748435231240,5.7191,174.77,174.75,0.04282876]
[1748435232041,5.75597906,174.78,174.75,0.04282876]
[1748435232745,5.7191,174.77,174.75,0.04282876]
[1748435232946,0.03717906,174.78,174.75,0.04282876]
[1748435233244,5.7194,174.76,174.75,0.04282876]
[1748435253349,0.03717906,174.78,174.76,5.7193]
[1748435253556,0.03717906,174.78,174.75,0.04282876]
[1748435254552,5.7193,174.76,174.75,0.04282876]
[1748435256957,5.7192,174.77,174.75,0.04282876]
[1748435257951,5.75597906,174.78,174.75,0.04282876]
[1748435258147,0.03717906,174.78,174.75,0.04282876]
[1748435259354,0.03717906,174.78,174.76,5.7193]
[1748435263364,0.03717906,174.78,174.75,0.04282876]
[1748435264260,0.03717906,174.78,174.76,5.7191]
[1748435265961,5.75587906,174.78,174.75,5.76242876]
[1748435266261,0.03717906,174.78,174.75,0.04282876]
[1748435267359,0.03717906,174.78,174.75,33.80282876]
[1748435267665,0.03717906,174.78,174.76,5.7191]
[1748435268265,0.03717906,174.78,174.75,39.52232876]
[1748435268471,0.03717906,174.78,174.75,33.80282876]
[1748435268960,0.03717906,174.78,174.76,5.7192]
[1748435271763,0.03717906,174.78,174.77,5.719]
[1748435272469,34.6,174.85,174.78,5.7185]
[1748435272960,5.7176,174.82,174.78,5.7185]
[1748435273161,5.7176,174.82,174.79,5.7183]
[1748435273566,5.7176,174.82,174.79,5.75704048]
[1748435273764,34.6,174.85,174.79,0.03874048]
[1748435274366,33.76,174.89,174.8,5.718]
[1748435274563,33.76,174.89,174.75,33.76]
[1748435274564,33.76,174.89,174.83,0.03930452]
[1748435276073,5.7167,174.84,174.83,0.03930452]
[1748435281270,5.7167,174.84,174.75,33.76]
[1748435281271,6.62815369,174.84,174.75,33.76]
[1748435281471,40.38815369,174.84,174.75,33.76]
[1748435281664,1.9701,174.83,174.75,33.76]
[1748435281869,5.7189,174.78,174.75,39.4796]
[1748435282375,5.75886657,174.78,174.75,39.52204151]
[1748435282964,5.75886657,174.78,174.76,5.7193]
[1748435283171,5.75886657,174.78,174.75,33.80244151]
[1748435283573,5.75886657,174.78,174.75,39.52194151]
[1748435283779,0.03996657,174.78,174.75,33.80244151]
[1748435284680,0.03996657,174.78,174.76,5.7191]
[1748435285681,5.75866657,174.78,174.75,33.80244151]
[1748435286477,0.03996657,174.78,174.75,33.80244151]
[1748435286878,0.03996657,174.78,174.76,5.7193]
[1748435287979,5.75866657,174.78,174.75,39.52194151]
[1748435288877,0.03996657,174.78,174.76,5.7193]
[1748435289074,0.03996657,174.78,174.75,33.80244151]
[1748435289679,33.76,174.84,174.75,33.80244151]
[1748435290078,5.7176,174.82,174.79,5.7182]
[1748435290583,5.7176,174.82,174.79,5.76182336]
[1748435292472,33.76,174.84,174.79,0.04362336]
[1748435292882,5.7172,174.83,174.79,5.76172336]
[1748435293077,33.76,174.84,174.79,5.76172336]
[1748435293481,5.7173,174.83,174.79,0.04362336]
[1748435293682,33.76,174.84,174.79,0.04362336]
[1748435294781,5.7172,174.83,174.79,0.04362336]
[1748435295382,5.7172,174.83,174.79,5.76182336]
[1748435295584,5.7174,174.82,174.79,5.76182336]
[1748435295785,33.76,174.84,174.8,5.718]
[1748435296178,5.7174,174.82,174.79,0.04362336]
[1748435296374,5.7174,174.82,174.79,5.76172336]
[1748435297882,5.7172,174.83,174.8,5.718]
[1748435300785,5.7169,174.84,174.81,5.7177]
[1748435301091,5.7169,174.84,174.81,5.75441539]
[1748435301585,5.7169,174.84,174.82,2.24720467]
[1748435301793,5.7169,174.84,174.83,2.24721953]
[1748435302284,5.7169,174.84,174.83,2.24700146]
[1748435302791,5.7169,174.84,174.83,2.24717823]
[1748435303383,5.7169,174.84,174.83,2.2473958]
[1748435303585,33.72,174.88,174.83,2.2473958]
[1748435303787,33.72,174.88,174.84,2.2473958]
[1748435303993,33.72,174.88,174.85,2.2473958]
[1748435304186,5.7158,174.87,174.86,2.2473958]
[1748435305788,5.7161,174.86,174.85,0.03888274]
[1748435305987,5.7161,174.86,174.85,2.28627563]
[1748435306189,5.7161,174.86,174.85,2.28627716]
[1748435307391,5.7161,174.86,174.85,2.28621995]
[1748435308389,5.7161,174.86,174.85,2.2863964]
[1748435309692,5.7161,174.86,174.85,2.28651306]
[1748435309886,9.95359045,174.86,174.85,2.28651306]
[1748435310988,5.7161,174.86,174.85,2.28656844]
[1748435311590,5.7161,174.86,174.85,0.03888274]
[1748435311794,5.7161,174.86,174.85,2.28672627]
[1748435312192,5.7161,174.86,174.85,0.03888274]
[1748435312894,5.7161,174.86,174.85,2.28672627]
[1748435313092,5.7161,174.86,174.85,0.03888274]
[1748435314088,5.7161,174.86,174.85,2.28725469]
[1748435314292,5.7161,174.86,174.85,0.03888274]
[1748435315894,5.7161,174.86,174.85,2.28753714]
[1748435316095,5.7161,174.86,174.85,0.03888274]
[1748435316602,5.7161,174.86,174.85,8.274e-05]
[1748435317297,5.7161,174.86,174.85,2.24868655]
[1748435317502,5.7161,174.86,174.85,8.274e-05]
[1748435318905,5.7161,174.86,174.85,2.24869264]
[1748435319105,5.7161,174.86,174.85,8.274e-05]
[1748435319607,9.95359045,174.86,174.85,8.274e-05]
[1748435320309,9.95359045,174.86,174.85,2.24889839]
[1748435321709,9.95359045,174.86,174.85,2.24882041]
[1748435322914,9.95359045,174.86,174.85,8.274e-05]
[1748435323113,9.95359045,174.86,174.85,2.24883704]
[1748435324112,9.95359045,174.86,174.85,8.274e-05]
[1748435324312,9.95359045,174.86,174.85,2.24886241]
[1748435325813,9.95359045,174.86,174.85,2.24903294]
[1748435326009,9.95359045,174.86,174.85,2.2490268]
[1748435326206,9.95359045,174.86,174.85,2.24900999]
[1748435326912,9.95359045,174.86,174.85,2.24906244]
[1748435327917,9.95359045,174.86,174.85,8.274e-05]
[1748435328122,9.95359045,174.86,174.85,2.24941585]
[1748435329522,9.95359045,174.86,174.85,2.25016084]
[1748435331318,9.95359045,174.86,174.78,4.23749045]
[1748435331319,5.718,174.81,174.78,9.95609045]
[1748435331921,5.7176,174.82,174.79,5.7182]
[1748435332121,4.23749045,174.84,174.78,4.23749045]
[1748435332321,4.23749045,174.84,174.79,0.03773122]
[1748435332513,5.718,174.81,174.79,0.03773122]
[1748435333424,5.718,174.8,174.79,0.03773122]
[1748435343429,9.95549045,174.8,174.79,0.03773122]
[1748435346437,5.7194,174.76,174.73,1.9667]
[1748435346734,5.7194,174.76,174.73,7.6868]
[1748435347138,4.23749045,174.78,174.73,1.9667]
[1748435347335,0.03684415,174.77,174.74,5.75712226]
[1748435348039,5.75614415,174.77,174.74,5.75712226]
[1748435348934,5.7194,174.76,174.74,5.75712226]
[1748435349535,5.75604415,174.77,174.74,5.75712226]
[1748435349942,0.03684415,174.77,174.74,5.75712226]
[1748435350139,5.75604415,174.77,174.75,5.7196]
[1748435351333,5.75604415,174.77,174.74,5.75712226]
[1748435353238,5.7194,174.76,174.74,5.75712226]
[1748435353833,5.7197,174.75,174.74,0.03722226]
[1748435354034,0.03684415,174.77,174.74,0.03722226]
[1748435354437,5.7196,174.76,174.74,5.75722226]
[1748435356437,5.7196,174.76,174.74,0.03722226]
[1748435358548,5.7197,174.75,174.74,0.03722226]
[1748435361440,9.95699045,174.76,174.74,0.03722226]
[1748435362642,5.7197,174.75,174.74,0.03722226]
[1748435365240,4.23749045,174.76,174.74,0.03722226]
[1748435365442,9.95689045,174.76,174.74,0.03722226]
[1748435367152,4.23749045,174.76,174.74,0.03722226]
[1748435367746,5.7197,174.75,174.74,0.03722226]
[1748435368246,4.23749045,174.76,174.74,0.03722226]
[1748435368845,0.03684415,174.77,174.74,0.03722226]
[1748435369049,9.95689045,174.76,174.74,5.75702226]
[1748435370247,4.23749045,174.76,174.74,5.75702226]
[1748435370452,0.03684415,174.77,174.74,0.03722226]
[1748435370843,0.03684415,174.77,174.76,5.7194]
[1748435376442,33.56,174.84,174.79,5.7182]
[1748435376642,4.23749045,174.83,174.77,4.23749045]
[1748435376950,9.95489045,174.83,174.77,4.23749045]
[1748435377254,9.95489045,174.83,174.8,5.718]
[1748435377557,5.7176,174.82,174.8,0.04146745]
[1748435378954,5.7176,174.82,174.8,5.75946745]
[1748435379852,4.27877446,174.83,174.8,5.75946745]
[1748435379853,0.04128401,174.83,174.8,0.04146745]
[1748435380347,0.04128401,174.83,174.82,5.7174]
[1748435380754,5.7176,174.82,174.8,0.04146745]
[1748435381547,5.7176,174.82,174.8,5.75946745]
[1748435382556,5.7176,174.82,174.8,0.04146745]
[1748435383659,5.7177,174.81,174.8,0.04146745]
[1748435384946,9.95519045,174.81,174.8,0.04146745]
[1748435387749,5.7177,174.81,174.8,0.04146745]
[1748435387951,9.95519045,174.81,174.8,0.04146745]
[1748435390449,0.04128401,174.83,174.8,0.04146745]
[1748435390852,0.04128401,174.83,174.8,5.75916745]
[1748435390853,5.75848401,174.83,174.8,5.75916745]
[1748435391264,5.75848401,174.83,174.8,0.04146745]
[1748435392563,0.04128401,174.83,174.8,0.04146745]
[1748435393063,5.75858401,174.83,174.8,0.04146745]
[1748435393260,0.04128401,174.83,174.8,0.04146745]
[1748435393855,5.7177,174.82,174.8,0.04146745]
[1748435394055,0.04128401,174.83,174.8,0.04146745]
[1748435396164,5.7177,174.81,174.8,0.04146745]
[1748435396567,0.04128401,174.83,174.8,0.04146745]
[1748435397366,5.7177,174.81,174.8,0.04146745]
[1748435400668,5.7189,174.78,174.75,5.7195]
[1748435401064,33.4,174.84,174.73,1.9815]
[1748435401366,5.7186,174.79,174.73,1.9815]
[1748435401868,5.75716254,174.78,174.76,5.7192]
[1748435402067,5.7187,174.78,174.76,5.7192]
[1748435402368,5.76230134,174.79,174.76,5.7192]
[1748435402565,0.04370134,174.79,174.75,0.0365377]
[1748435403271,0.04370134,174.79,174.78,5.7187]
[1748435403470,33.4,174.84,174.76,1.9902]
[1748435403769,39.1169,174.84,174.82,5.7173]
[1748435403959,33.4,174.84,174.82,5.7173]
[1748435404161,33.4,174.84,174.77,33.4]
[1748435404471,33.4,174.84,174.82,5.7173]
[1748435404668,39.1168,174.84,174.82,5.7173]
[1748435405568,39.1168,174.84,174.81,5.7176]
[1748435406460,5.7172,174.83,174.81,5.7176]
[1748435407268,5.7174,174.82,174.79,0.04097727]
[1748435407469,33.4,174.84,174.79,0.04097727]
[1748435407864,5.718,174.8,174.79,0.04097727]
[1748435408070,0.0435248,174.81,174.79,0.04097727]
[1748435408673,0.0435248,174.81,174.79,5.75927727]
[1748435409270,5.7615248,174.81,174.79,0.04097727]
[1748435409970,5.7615248,174.81,174.79,5.75927727]
[1748435410174,0.0435248,174.81,174.79,0.04097727]
[1748435410374,0.0435248,174.81,174.8,5.718]
[1748435411671,0.0435248,174.81,174.79,0.04097727]
[1748435411864,5.7613248,174.81,174.79,0.04097727]
[1748435412069,0.0435248,174.81,174.79,0.04097727]
[1748435412571,5.7613248,174.81,174.79,0.04097727]
[1748435414375,5.7613248,174.81,174.79,5.75927727]
[1748435414575,0.0435248,174.81,174.79,0.04097727]
[1748435415574,0.0435248,174.81,174.79,5.75917727]
[1748435417375,5.7612248,174.81,174.79,5.75917727]
[1748435417979,5.718,174.8,174.79,0.04097727]
[1748435435998,9.95863191,174.8,174.79,0.04097727]
[1748435436997,9.95863191,174.8,174.73,1.9815]
[1748435436998,5.7199,174.75,174.73,1.9815]
[1748435437200,4.24063191,174.77,174.7,37.48063191]
[1748435437598,5.7197,174.75,174.72,5.7205]
[1748435438196,5.7201,174.74,174.72,5.76293928]
[1748435438697,9.99927491,174.75,174.72,0.04243928]